fUSD/lending_fUSD_20260112
["ID","MTS","AMOUNT","RATE_DAILY","PERIOD"]
[401402302,1768185053438,-1213.435936,0.00017847,2]
[401402303,1768185053449,-151.0,0.00017847,2]
[401402304,1768185053459,-151.0,0.00017847,2]
[401402305,1768185053469,-1449.287289,0.00017847,2]
[401402306,1768185053479,-1213.435936,0.00017847,2]
[401402307,1768185053489,-1449.287289,0.00017847,2]
[401402308,1768185053499,-151.0,0.00017847,2]
[401402309,1768185053511,-1449.287289,0.00017847,2]
[401402310,1768185053522,-1213.435936,0.00017847,2]
[401402311,1768185053533,-1449.287289,0.00017847,2]
[401402312,1768185053544,-151.0,0.00017847,2]
[401402313,1768185053555,-1213.435936,0.00017847,2]
[401402314,1768185053565,-252.729093,0.00017847,2]
[401402315,1768185053576,-151.0,0.00017847,2]
[401402316,1768185053586,-151.0,0.00017847,2]
[401402317,1768185053597,-296.027339,0.00017847,2]
[401402318,1768185053607,-2058.799777,0.00017847,2]
[401402319,1768185053617,-2058.799777,0.00017847,2]
[401402320,1768185053628,-252.729093,0.00017847,2]
[401402321,1768185053638,-3180.496952,0.00017847,2]
[401402322,1768185053648,-2058.799777,0.00017847,2]
[401402323,1768185053658,-252.729093,0.00017847,2]
[401402324,1768185053669,-3180.496952,0.00017847,2]
[401402325,1768185053679,-2058.799777,0.00017847,2]
[401402326,1768185053690,-252.729093,0.00017847,2]
[401402327,1768185053700,-3180.496952,0.00017847,2]
[401402328,1768185053711,-3180.496952,0.00017847,2]
[401402329,1768185053725,-151.0,0.00017847,2]
[401402330,1768185053735,-186.434018,0.00017847,2]
[401402331,1768185053746,-186.434018,0.00017847,2]
[401402332,1768185053758,-406.407969,0.00017847,2]
[401402333,1768185053768,-186.434018,0.00017847,2]
[401402334,1768185053779,-406.407969,0.00017847,2]
[401402335,1768185053790,-186.434018,0.00017847,2]
[401402336,1768185053802,-406.407969,0.00017847,2]
[401402337,1768185053813,-164.53868,0.00017847,2]
[401402338,1768185053823,-151.0,0.00017847,2]
[401402339,1768185053835,-406.407969,0.00017847,2]
[401402340,1768185053846,-164.53868,0.00017847,2]
[401402341,1768185053857,-151.0,0.00017847,2]
[401402342,1768185053867,-164.53868,0.00017847,2]
[401402343,1768185053878,-156.899188,0.00017847,2]
[401402344,1768185053889,-164.53868,0.00017847,2]
[401402345,1768185053900,-151.0,0.00017847,2]
[401402346,1768185053911,-151.0,0.00017847,2]
[401402347,1768185053921,-151.0,0.00017847,2]
[401402348,1768185053932,-151.0,0.00017847,2]
[401402349,1768185053943,-151.0,0.00017847,2]
[401402350,1768185053953,-151.0,0.00017847,2]
[401402351,1768185053963,-151.0,0.00017847,2]
[401402352,1768185053974,-353.193053,0.00017847,2]
[401402353,1768185053984,-151.0,0.00017847,2]
[401402354,1768185053994,-353.193053,0.00017847,2]
[401402355,1768185054005,-626.382526,0.00017847,2]
[401402356,1768185054016,-151.0,0.00017847,2]
[401402357,1768185054027,-151.0,0.00017847,2]
[401402358,1768185054037,-353.193053,0.00017847,2]
[401402359,1768185054048,-502.526554,0.00017847,2]
[401402360,1768185054059,-151.0,0.00017847,2]
[401402361,1768185054069,-626.382526,0.00017847,2]
[401402362,1768185054080,-353.193053,0.00017847,2]
[401402363,1768185054091,-502.526554,0.00017847,2]
[401402364,1768185054101,-304.331322,0.00017847,2]
[401402365,1768185054112,-151.0,0.00017847,2]
[401402366,1768185054122,-502.526554,0.00017847,2]
[401402367,1768185054132,-304.331322,0.00017847,2]
[401402368,1768185054143,-151.0,0.00017847,2]
[401402369,1768185054153,-502.526554,0.00017847,2]
[401402370,1768185054164,-151.0,0.00017847,2]
[401402371,1768185054175,-304.331322,0.00017847,2]
[401402372,1768185054185,-1097.59784,0.00017847,2]
[401402373,1768185054195,-580.513877,0.00017847,2]
[401402374,1768185054206,-151.0,0.00017847,2]
[401402375,1768185054217,-151.0,0.00017847,2]
[401402376,1768185054227,-304.331322,0.00017847,2]
[401402377,1768185054239,-1097.59784,0.00017847,2]
[401402378,1768185054250,-580.513877,0.00017847,2]
[401402379,1768185054261,-151.0,0.00017847,2]
[401402380,1768185054271,-151.0,0.00017847,2]
[401402381,1768185054282,-2360.992211,0.00017847,2]
[401402382,1768185054294,-151.0,0.00017847,2]
[401402383,1768185054305,-1097.59784,0.00017847,2]
[401402384,1768185054316,-580.513877,0.00017847,2]
[401402385,1768185054327,-2360.992211,0.00017847,2]
[401402386,1768185054339,-626.382526,0.00017847,2]
[401402387,1768185054349,-152.928929,0.00017847,2]
[401402388,1768185054360,-1097.59784,0.00017847,2]
[401402389,1768185054371,-580.513877,0.00017847,2]
[401402390,1768185054381,-151.0,0.00017847,2]
[401402391,1768185054392,-313.973335,0.00017847,2]
[401402392,1768185054402,-2360.992211,0.00017847,2]
[401402393,1768185054414,-626.382526,0.00017847,2]
[401402394,1768185054425,-151.0,0.00017847,2]
[401402395,1768185054436,-2360.992211,0.00017847,2]
[401402396,1768185054447,-268.304614,0.00017847,2]
[401402397,1768185054458,-313.973335,0.00017847,2]
[401402398,1768185054469,-313.973335,0.00017847,2]
[401402399,1768185054479,-268.304614,0.00017847,2]
[401402400,1768185054490,-3628.219339,0.00017847,2]
[401402401,1768185054500,-313.973335,0.00017847,2]
[401402402,1768185054511,-268.304614,0.00017847,2]
[401402403,1768185054521,-3628.219339,0.00017847,2]
[401402404,1768185054534,-151.0,0.00017847,2]
[401402405,1768185054544,-2100.965857,0.00017847,2]
[401402406,1768185054555,-268.304614,0.00017847,2]
[401402407,1768185054566,-2674.271877,0.00017847,2]
[401402408,1768185054577,-3628.219339,0.00017847,2]
[401402409,1768185054587,-2100.965857,0.00017847,2]
[401402410,1768185054598,-151.0,0.00017847,2]
[401402411,1768185054609,-2674.271877,0.00017847,2]
[401402412,1768185054619,-3628.219339,0.00017847,2]
[401402413,1768185054630,-1122.495442,0.00017847,2]
[401402414,1768185054640,-2100.965857,0.00017847,2]
[401402415,1768185054651,-151.0,0.00017847,2]
[401402416,1768185054662,-2674.271877,0.00017847,2]
[401402417,1768185054672,-1122.495442,0.00017847,2]
[401402418,1768185054683,-2100.965857,0.00017847,2]
[401402419,1768185054693,-151.0,0.00017847,2]
[401402420,1768185054703,-197.046997,0.00017847,2]
[401402421,1768185054714,-2674.271877,0.00017847,2]
[401402422,1768185054727,-1122.495442,0.00017847,2]
[401402423,1768185054737,-197.046997,0.00017847,2]
[401402424,1768185054747,-2846.459189,0.00017847,2]
[401402425,1768185054759,-1122.495442,0.00017847,2]
[401402426,1768185054769,-197.046997,0.00017847,2]
[401402427,1768185054835,-2846.459189,0.00017847,2]
[401402428,1768185054847,-197.046997,0.00017847,2]
[401402429,1768185054856,-151.0,0.00017847,2]
[401402430,1768185054866,-2846.459189,0.00017847,2]
[401402431,1768185054875,-2846.459189,0.00017847,2]
[401402432,1768185054884,-263.264534,0.00017847,2]
[401402433,1768185054893,-263.264534,0.00017847,2]
[401402434,1768185054902,-151.0,0.00017847,2]
[401402435,1768185054912,-263.264534,0.00017847,2]
[401402436,1768185054922,-151.0,0.00017847,2]
[401402437,1768185054931,-263.264534,0.00017847,2]
[401402438,1768185054941,-151.0,0.00017847,2]
[401402439,1768185054950,-364.853929,0.00017847,2]
[401402440,1768185054959,-151.0,0.00017847,2]
[401402441,1768185054969,-364.853929,0.00017847,2]
[401402442,1768185054979,-732.097592,0.00017847,2]
[401402443,1768185054990,-364.853929,0.00017847,2]
[401402444,1768185054999,-732.097592,0.00017847,2]
[401402445,1768185055009,-364.853929,0.00017847,2]
[401402446,1768185055019,-732.097592,0.00017847,2]
[401402447,1768185055031,-335.338181,0.00017847,2]
[401402448,1768185055041,-547.709876,0.00017847,2]
[401402449,1768185055054,-732.097592,0.00017847,2]
[401402450,1768185055064,-335.338181,0.00017847,2]
[401402451,1768185055074,-547.709876,0.00017847,2]
[401402452,1768185055083,-335.338181,0.00017847,2]
[401402453,1768185055093,-151.0,0.00017847,2]
[401402454,1768185055102,-547.709876,0.00017847,2]
[401402455,1768185055111,-335.338181,0.00017847,2]
[401402456,1768185055121,-151.0,0.00017847,2]
[401402457,1768185055130,-547.709876,0.00017847,2]
[401402458,1768185055140,-4317.19339,0.00017847,2]
[401402459,1768185055152,-271.064633,0.00017847,2]
[401402460,1768185055161,-3024.557062,0.00017847,2]
[401402461,1768185055169,-4317.19339,0.00017847,2]
[401402462,1768185055178,-151.0,0.00017847,2]
[401402463,1768185055188,-3024.557062,0.00017847,2]
[401402464,1768185055200,-1343.949545,0.00017847,2]
[401402465,1768185055209,-4317.19339,0.00017847,2]
[401402466,1768185055218,-151.0,0.00017847,2]
[401402467,1768185055228,-151.0,0.00017847,2]
[401402468,1768185055237,-357.51999946,0.00017847,2]
[401402469,1768185055663,-485.87179047,0.00017041,2]
[401402470,1768185055924,-176.07820953,0.00017041,2]
[401402471,1768185055934,-179.28,0.00017178,2]
[401402472,1768185055944,-467.15,0.00017178,2]
[401402473,1768185055953,-3704.45047746,0.00017553,2]
[401402474,1768185055987,-1116.54952254,0.00017553,2]
[401402475,1768185055996,-163.76047526,0.000178,2]
[401402476,1768185057391,151.0,0.00027397,120]
[401402477,1768185064496,151.0,0.00027397,120]
[401402478,1768185072078,151.0,0.00027397,120]
[401402479,1768185113817,-253.1701093,0.00013725,2]
[401402480,1768185117803,-304.05069773,0.00013725,2]
[401402481,1768185119851,-320.29133073,0.00013724,2]
[401402482,1768185121370,-210.73445015,0.00013723,2]
[401402483,1768185125072,-89.26554985,0.00013723,2]
[401402484,1768185125101,-179.70866927,0.00013724,2]
[401402485,1768185125122,-36.88290211,0.00013724,2]
[401402486,1768185127874,-269.66769649,0.00013724,2]
[401402487,1768185127898,-503.15987298,0.00013724,2]
[401402488,1768185127923,-195.00534997,0.00013724,2]
[401402489,1768185127949,-140.55620618,0.00013724,2]
[401402490,1768185132443,-68.51352137,0.00013724,2]
[401402491,1768185132470,-231.48647863,0.00013724,2]
[401402492,1768185134547,-268.51352137,0.00013724,2]
[401402493,1768185134571,-192.71582831,0.00013724,2]
[401402494,1768185136923,-172.83258673,0.00013724,2]
[401402495,1768185140405,-134.45158496,0.00013724,2]
[401402496,1768185140428,-53.98580787,0.00013724,2]
[401402497,1768185143578,-163.85856116,0.00013724,2]
[401402498,1768185146669,-235.95137901,0.00013724,2]
[401402499,1768185149076,-46.20425196,0.00013724,2]
[401402500,1768185149100,-279.06151189,0.00013724,2]
[401402501,1768185179830,300.0,0.000139,5]
[401402502,1768185193063,151.0,0.00027397,120]
[401402503,1768185201338,151.0,0.00027397,120]
[401402504,1768185206859,162.0,0.000273,120]
[401402505,1768185208848,151.0,0.00027397,120]
[401402506,1768185216433,151.0,0.00027397,120]
[401402507,1768185226140,160.0,0.000273,120]
[401402508,1768185228780,151.0,0.00027397,120]
[401402509,1768185238959,161.23,0.000273,120]
[401402510,1768185254003,151.0,0.00027397,120]
[401402511,1768185258996,174.43211278,0.00013625,2]
[401402512,1768185262898,151.0,0.00027397,120]
[401402513,1768185267541,174.43211278,0.00013625,2]
[401402514,1768185268870,223.96873025,0.00013625,2]
[401402515,1768185270992,151.0,0.00027397,120]
[401402516,1768185278569,151.0,0.00027397,120]
[401402518,1768185388219,203.39282247,0.00013623,2]
[401402519,1768185394263,203.39282247,0.00013625,2]
[401402520,1768185394299,174.43211273,0.00013625,2]
[401402521,1768185397754,174.43211273,0.00013625,2]
[401402522,1768185399131,223.96873024,0.00013625,2]
[401402523,1768185433295,151.0,0.00027397,120]
[401402524,1768185442836,-161.55111618,0.00013717,2]
[401402525,1768185444744,-250.0,0.00013717,2]
[401402526,1768185448685,-88.44888382,0.00013717,2]
[401402527,1768185448708,-86.91846847,0.00013717,2]
[401402528,1768185452830,-274.34757291,0.00013717,2]
[401402529,1768185454960,-138.73395862,0.00013717,2]
[401402530,1768185454986,-32.36135114,0.00013717,2]
[401402531,1768185456332,-179.96458829,0.00013717,2]
[401402532,1768185461177,-225.65242709,0.00013717,2]
[401402533,1768185463197,-110.36385949,0.00013717,2]
[401402534,1768185463221,-134.91171736,0.00013717,2]
[401402535,1768185464690,-16.08828264,0.00013717,2]
[401402536,1768185464717,-151.0,0.00013717,2]
[401402537,1768185464741,-24.51196524,0.00013717,2]
[401402538,1768185464863,7426.07578812,0.00013625,2]
[401402539,1768185466228,-126.48803476,0.00013717,2]
[401402540,1768185466253,-114.99473149,0.00013717,2]
[401402541,1768185468902,-36.00526851,0.00013717,2]
[401402542,1768185468938,-151.0,0.00013717,2]
[401402543,1768185468962,-55.00931134,0.00013717,2]
[401402545,1768185472142,-95.99068866,0.00013717,2]
[401402546,1768185472164,-151.0,0.00013717,2]
[401402547,1768185472187,-11.52654509,0.00013717,2]
[401402548,1768185474792,161.551116,0.00013648,2]
[401402549,1768185478579,-139.47345491,0.00013717,2]
[401402550,1768185478601,-151.0,0.00013717,2]
[401402551,1768185478623,-36.87756705,0.00013717,2]
[401402553,1768185480741,-114.12243295,0.00013717,2]
[401402554,1768185480765,-50.11634878,0.00013717,2]
[401402560,1768185519731,174.43211273,0.00013625,2]
[401402562,1768185523558,174.43211273,0.00013625,2]
[401402570,1768185572859,1083.90026978,0.00013625,2]
[401402571,1768185572886,4559.30261043,0.00013625,2]
[401402576,1768185597724,2098.2327,0.00013625,2]
[401402578,1768185607953,-290.29070041,0.00013715,2]
[401402580,1768185611125,-222.692448,0.00013715,2]
[401402582,1768185615361,-100.88365122,0.00013717,2]
[401402583,1768185615384,-97.95795261,0.00013717,2]
[401402584,1768185617358,-63.62848599,0.00013717,2]
[401402585,1768185617381,-105.94237823,0.00013717,2]
[401402589,1768185659483,2161.704,0.0002739,120]
[401402590,1768185670848,317.8102,0.00013623,2]
[401402591,1768185683190,150.0,0.00013671,2]
[401402592,1768185683301,153.00893643,0.00013671,2]
[401402593,1768185683343,154.83288335,0.00013671,2]
[401402594,1768185684411,150.0,0.00013671,2]
[401402595,1768185684585,150.0,0.00013671,2]
[401402596,1768185684762,150.0,0.00013671,2]
[401402597,1768185685020,150.0,0.00013671,2]
[401402598,1768185685485,500.0,0.00013671,2]
[401402599,1768185685847,500.0,0.00013671,2]
[401402600,1768185686351,153.68270293,0.00013671,2]
[401402601,1768185687171,500.0,0.00013671,2]
[401402602,1768185687439,500.0,0.00013671,2]
[401402603,1768185688485,150.0,0.00013671,2]
[401402609,1768185734767,1337.758,0.00013625,2]
[401402611,1768185741015,2884.68457729,0.00013625,2]
[401402612,1768185741038,256.05812271,0.00013625,2]
[401402621,1768185820076,187.07274712,0.00013626,2]
[401402625,1768185851675,500.0,0.00013671,2]
[401402627,1768185851748,152.17779461,0.00013671,2]
[401402628,1768185852545,150.0,0.00013671,2]
[401402629,1768185852638,500.0,0.00013671,2]
[401402630,1768185853025,150.87793006,0.00013671,2]
[401402631,1768185853615,150.0,0.00013671,2]
[401402632,1768185853987,150.0,0.00013671,2]
[401402633,1768185854775,150.0,0.00013671,2]
[401402634,1768185855278,150.0,0.00013671,2]
[401402635,1768185855714,6683.46820929,0.00013626,2]
[401402641,1768185892914,820.35519621,6.701e-05,2]
[401402642,1768185892936,722.60480379,6.701e-05,2]
[401402643,1768185893112,1542.96,7.04e-05,2]
[401402644,1768185893744,1542.96,7.379e-05,2]
[401402645,1768185894502,1542.96,7.718e-05,2]
[401402646,1768185894588,1542.96,8.057e-05,2]
[401402647,1768185894639,1542.96,8.395e-05,2]
[401402648,1768185894686,1542.96,8.734e-05,2]
[401402649,1768185894731,19.64519621,9.073e-05,2]
[401402650,1768185894753,1523.31480379,9.073e-05,2]
[401402651,1768185894806,169.69853594,9.412e-05,2]
[401402652,1768185894831,1373.26146406,9.412e-05,2]
[401402653,1768185894873,1542.96,9.751e-05,2]
[401402654,1768185895022,1542.96,0.0001009,2]
[401402655,1768185895215,1542.96,0.00010428,2]
[401402656,1768185895456,1542.96,0.00010767,2]
[401402657,1768185895665,931.59373215,0.00011106,2]
[401402658,1768185895688,611.36626785,0.00011106,2]
[401402659,1768185895882,1542.96,0.00011445,2]
[401402660,1768185896069,1542.96,0.00011784,2]
[401402661,1768185896273,1542.96,0.00012123,2]
[401402662,1768185896488,1542.96,0.00012462,2]
[401402663,1768185896707,1542.96,0.000128,2]
[401402664,1768185896918,1542.96,0.00013139,2]
[401402669,1768185914958,130.88373215,0.00013671,2]
[401402670,1768185914983,85.33283239,0.00013671,2]
[401402671,1768185915107,150.0,0.00013671,2]
[401402674,1768185930088,-157.05762177,0.00013717,2]
[401402675,1768185930109,-81.25494701,0.00013717,2]
[401402680,1768185959698,1000.0,0.00013182,2]
[401402683,1768185981378,310.27,0.00013081,2]
[401402685,1768185986812,999.0,0.00013075,3]
[401402687,1768185992349,150.0,0.0001355,2]
[401402688,1768185992397,150.0,0.00013605,2]
[401402689,1768185992473,231.25061472,0.0001366,2]
[401402693,1768186021459,300.0,0.000139,5]
[401402695,1768186043111,-259.66045117,0.00013717,2]
[401402696,1768186043131,-250.0,0.00013717,2]
[401402697,1768186043151,-195.0,0.00013717,2]
[401402698,1768186043171,-195.0,0.00013718,2]
[401402699,1768186043191,-250.0,0.00013718,2]
[401402700,1768186043219,-195.0,0.00013719,2]
[401402701,1768186043238,-1200.0,0.00013721,2]
[401402702,1768186043259,-119.58392196,0.00013721,2]
[401402707,1768186083226,5078.88259218,0.00013626,2]
[401402708,1768186104478,209.31393484,0.00013452,2]
[401402709,1768186105028,203.58264481,0.00013452,2]
[401402710,1768186105126,150.0,0.00013452,2]
[401402711,1768186105331,150.0,0.00013507,2]
[401402712,1768186105589,210.94800929,0.00013562,2]
[401402713,1768186140742,2155.76220416,0.00013625,2]
[401402714,1768186140772,10000.01,0.00013625,2]
[401402715,1768186140798,10000.01,0.00013625,2]
[401402716,1768186140823,10000.01,0.00013625,2]
[401402717,1768186140850,10000.01,0.00013625,2]
[401402718,1768186140874,10000.01,0.00013625,2]
[401402719,1768186140900,10000.01,0.00013625,2]
[401402720,1768186140927,10000.01,0.00013625,2]
[401402721,1768186140952,10000.01,0.00013625,2]
[401402722,1768186140977,10000.01,0.00013625,2]
[401402723,1768186150875,200.0,0.000139,5]
[401402724,1768186187302,2900.0,0.000139,5]
[401402725,1768186193908,1249.80292284,0.00013721,5]
[401402726,1768186197674,-4324.88779584,0.00013625,2]
[401402727,1768186197865,-10000.01,0.00013625,2]
[401402731,1768186212137,-152.06497505,0.00013621,2]
[401402732,1768186212171,-300.0,0.00013624,2]
[401402733,1768186212199,-300.0,0.00013624,2]
[401402734,1768186212227,-1200.0,0.00013624,2]
[401402735,1768186212256,-195.0,0.00013624,2]
[401402736,1768186212366,-5705.8800499,0.00013625,2]
[401402738,1768186212473,-10000.01,0.00013625,2]
[401402740,1768186212743,-10000.01,0.00013625,2]
[401402744,1768186213485,-10000.01,0.00013625,2]
[401402748,1768186214340,-150.0,0.00013452,2]
[401402749,1768186214370,-152.06497502,0.00013622,2]
[401402751,1768186214549,-9395.88004996,0.00013625,2]
[401402753,1768186214958,-500.0,0.00013452,2]
[401402755,1768186214989,-500.0,0.00013507,2]
[401402756,1768186215021,-500.0,0.00013562,2]
[401402757,1768186215112,-500.0,0.00013616,2]
[401402758,1768186215122,-6500.01,0.00013625,2]
[401402760,1768186215498,-152.17453605,0.00013452,2]
[401402761,1768186215534,-9695.6609279,0.00013625,2]
[401402765,1768186216226,-826.0,0.00013452,2]
[401402766,1768186216255,-826.0,0.00013507,2]
[401402767,1768186216326,-826.0,0.00013562,2]
[401402768,1768186216336,-5870.01,0.00013625,2]
[401402771,1768186216710,165.57,0.00011624,2]
[401402777,1768186222359,-165.57,0.00012786,2]
[401402778,1768186222392,-826.0,0.00013616,2]
[401402779,1768186222426,-152.06497502,0.00013623,2]
[401402780,1768186222503,-7712.74004996,0.00013625,2]
[401402798,1768186232705,800.0,0.000139,5]
[401402799,1768186232726,-205.64154085,0.00013525,2]
[401402800,1768186232736,-152.06497502,0.00013624,2]
[401402801,1768186232746,-740.34944566,0.00013625,2]
[401402802,1768186232762,-583.32,0.00013625,2]
[401402803,1768186232790,-1095.14892138,0.00013625,2]
[401402804,1768186232802,-38318.94593569,0.00013625,2]
[401402805,1768186232813,-30677.94321924,0.00013625,2]
[401402806,1768186232823,-182608.94340001,0.00013625,2]
[401402807,1768186232839,-477.49208952,0.00013625,2]
[401402808,1768186232851,-612.78854042,0.00013625,2]
[401402809,1768186232862,-1916.93521517,0.00013625,2]
[401402810,1768186232877,-3037.07724405,0.00013625,2]
[401402811,1768186232888,-871.14161176,0.00013625,2]
[401402814,1768186238011,-547.5100799,0.00013622,2]
[401402815,1768186238022,-1316.2203478,0.00013622,2]
[401402816,1768186238064,-1343.07308045,0.00013622,2]
[401402817,1768186238078,-873.39,0.00013622,2]
[401402818,1768186238120,-1841.6,0.00013622,2]
[401402819,1768186238175,-405.31094203,0.00013622,2]
[401402820,1768186238230,-4081.51319785,0.00013622,2]
[401402821,1768186238283,-919.38,0.00013622,2]
[401402822,1768186238294,-44677.64696567,0.00013622,2]
[401402823,1768186238304,-214.58541901,0.00013624,2]
[401402824,1768186238313,-500.0,0.00013624,2]
[401402825,1768186238322,-500.0,0.00013624,2]
[401402826,1768186238332,-500.0,0.00013624,2]
[401402828,1768186238341,-500.0,0.00013624,2]
[401402830,1768186238350,-500.0,0.00013624,2]
[401402832,1768186238359,-500.0,0.00013624,2]
[401402834,1768186238369,-500.0,0.00013624,2]
[401402836,1768186238378,-500.0,0.00013624,2]
[401402838,1768186238386,-500.0,0.00013624,2]
[401402840,1768186238396,-500.0,0.00013624,2]
[401402842,1768186238405,-500.0,0.00013624,2]
[401402844,1768186238414,-500.0,0.00013624,2]
[401402847,1768186238438,-500.0,0.00013624,2]
[401402850,1768186238449,-500.0,0.00013624,2]
[401402852,1768186238459,-500.0,0.00013624,2]
[401402854,1768186238469,-191.71043908,0.00013624,2]
[401402856,1768186238479,-500.0,0.00013624,2]
[401402858,1768186238488,-500.0,0.00013624,2]
[401402861,1768186238498,-500.0,0.00013624,2]
[401402863,1768186238507,-500.0,0.00013624,2]
[401402865,1768186238517,-500.0,0.00013624,2]
[401402867,1768186238527,-500.0,0.00013624,2]
[401402869,1768186238537,-500.0,0.00013624,2]
[401402871,1768186238547,-500.0,0.00013624,2]
[401402873,1768186238557,-143899.18757575,0.00013625,2]
[401403026,1768186240219,-1232.12809781,0.00013625,2]
[401403028,1768186240230,-355.14287031,0.00013625,2]
[401403030,1768186240241,-1259.215,0.00013625,2]
[401403035,1768186240271,-11012.39199452,0.00013625,2]
[401403037,1768186240282,-399940.88776099,0.00013625,2]
[401403039,1768186240292,-262.0,0.00013625,2]
[401403041,1768186240302,-234.85694137,0.00013625,2]
[401403044,1768186240316,-2995.17829643,0.00013625,2]
[401403046,1768186240325,-232.41861165,0.00013625,2]
[401403048,1768186240335,-500.0,0.00013671,2]
[401403050,1768186240344,-826.0,0.00013671,2]
[401403052,1768186240353,-378.65594035,0.00013722,2]
[401403054,1768186240363,-300.0,0.00013722,2]
[401403056,1768186240372,-150.0,0.00013722,2]
[401403058,1768186240382,-1200.0,0.00013722,2]
[401403060,1768186240391,-739.31,0.00013723,2]
[401403062,1768186240400,-150.99,0.00013724,2]
[401403064,1768186240410,-9999.99,0.00013724,2]
[401403066,1768186240420,-9999.99,0.00013724,2]
[401403068,1768186240429,-150.99,0.00013724,2]
[401403070,1768186240439,-839.72,0.00013724,2]
[401403072,1768186240448,-5931.22,0.00013724,2]
[401403074,1768186240457,-299.99,0.00013724,2]
[401403076,1768186240467,-999.99,0.00013724,2]
[401403078,1768186240476,-5549.43,0.00013724,2]
[401403080,1768186240486,-20014.37,0.00013724,2]
[401403082,1768186240495,-1887.802,0.00013724,2]
[401403084,1768186240505,-176.944,0.00013724,2]
[401403086,1768186240515,-500.0,0.00013724,2]
[401403088,1768186240525,-500.0,0.00013724,2]
[401403090,1768186240535,-500.0,0.00013724,2]
[401403092,1768186240545,-500.0,0.00013724,2]
[401403094,1768186240554,-504.22418673,0.00013726,2]
[401403097,1768186240564,-500.0,0.00013726,2]
[401403099,1768186240575,-512.5142456,0.00013726,2]
[401403101,1768186240585,-150.0,0.00013726,2]
[401403103,1768186240594,-150.0,0.00013726,2]
[401403105,1768186240605,-160.02718623,0.00013726,2]
[401403107,1768186240614,-150.0,0.00013726,2]
[401403109,1768186240624,-150.0,0.00013726,2]
[401403111,1768186240634,-229.57625895,0.00013726,2]
[401403113,1768186240642,-826.0,0.00013726,2]
[401403115,1768186240652,-500.0,0.00013781,2]
[401403117,1768186240661,-150.0,0.00013781,2]
[401403119,1768186240672,-202.87382707,0.00013781,2]
[401403121,1768186240681,-160.92556746,0.00013781,2]
[401403123,1768186240691,-204.15967263,0.00013781,2]
[401403125,1768186240700,-826.0,0.00013781,2]
[401403127,1768186240709,-500.0,0.00013824,2]
[401403129,1768186240719,-500.0,0.00013824,2]
[401403131,1768186240729,-437.33024339,0.00013824,2]
[401403133,1768186240738,-330.30276578,0.00013824,2]
[401403135,1768186240748,-510.80513008,0.00013824,2]
[401403137,1768186240757,-440.4397563,0.00013835,2]
[401403139,1768186240767,-150.0,0.00013835,2]
[401403141,1768186240776,-826.0,0.00013836,2]
[401403142,1768186240786,-150.0,0.0001389,2]
[401403143,1768186240795,-826.0,0.0001389,2]
[401403144,1768186240805,-1000.0,0.00013899,2]
[401403145,1768186240815,-1000.0,0.00013899,2]
[401403146,1768186240824,-229.89615997,0.00013945,2]
[401403147,1768186240833,-826.0,0.00013945,2]
[401403148,1768186240842,-500.0,0.00013945,2]
[401403149,1768186240852,-500.0,0.00013945,2]
[401403150,1768186240861,-500.0,0.00013945,2]
[401403151,1768186240870,-500.0,0.00013945,2]
[401403152,1768186240879,-500.0,0.00013945,2]
[401403153,1768186240888,-500.0,0.00013945,2]